[Event "Late-Titled-Tuesday-Blitz-May-07-2024"]
[Site "Chess.com"]
[Date "2024.05.07"]
[Round "6"]
[White "miraitrunks"]
[Black "Alexei_Gubajdullin"]
[Result "0-1"]
[WhiteElo "2258"]
[BlackElo "2554"]
[TimeControl "180+1"]
[EndTime "15:04:50 PDT"]
[Termination "Alexei_Gubajdullin won by checkmate"]

1. e4 {[%clk 0:02:20.1]} 1... g6 {[%clk 0:02:57.7]} 2. d4 {[%clk 0:02:19.6]}
2... Bg7 {[%clk 0:02:57.1]} 3. Nc3 {[%clk 0:02:20.5]} 3... d6 {[%clk 0:02:57.1]}
4. Be3 {[%clk 0:02:19.5]} 4... a6 {[%clk 0:02:56.7]} 5. a4 {[%clk 0:02:19.4]}
5... b6 {[%clk 0:02:55.4]} 6. g3 {[%clk 0:02:18.9]} 6... Bb7 {[%clk 0:02:55.2]}
7. Bg2 {[%clk 0:02:19.3]} 7... e6 {[%clk 0:02:55.7]} 8. Nge2 {[%clk 0:02:19.3]}
8... Nd7 {[%clk 0:02:56.2]} 9. O-O {[%clk 0:02:19.4]} 9... Ngf6 {[%clk
0:02:56.2]} 10. h3 {[%clk 0:02:19.5]} 10... O-O {[%clk 0:02:56]} 11. g4 {[%clk
0:02:18.5]} 11... Rb8 {[%clk 0:02:54.1]} 12. Ng3 {[%clk 0:02:15.5]} 12... c5
{[%clk 0:02:53.9]} 13. g5 {[%clk 0:02:13.2]} 13... Ne8 {[%clk 0:02:53.5]} 14. d5
{[%clk 0:02:04.6]} 14... Ne5 {[%clk 0:02:50.6]} 15. Qe2 {[%clk 0:01:56.2]} 15...
Nc7 {[%clk 0:02:49]} 16. f4 {[%clk 0:01:55.5]} 16... Nd7 {[%clk 0:02:47.3]} 17.
Rad1 {[%clk 0:01:55.1]} 17... exd5 {[%clk 0:02:46.7]} 18. exd5 {[%clk 0:01:53]}
18... b5 {[%clk 0:02:46.5]} 19. axb5 {[%clk 0:01:52.4]} 19... axb5 {[%clk
0:02:46.5]} 20. Nce4 {[%clk 0:01:43.6]} 20... Bxd5 {[%clk 0:02:45.1]} 21. Nxd6
{[%clk 0:01:41.3]} 21... Bxg2 {[%clk 0:02:43.9]} 22. Qxg2 {[%clk 0:01:39.9]}
22... Qe7 {[%clk 0:02:43.3]} 23. Rfe1 {[%clk 0:01:36.8]} 23... Qd8 {[%clk
0:02:37.5]} 24. Nge4 {[%clk 0:01:13.5]} 24... Bxb2 {[%clk 0:02:25.9]} 25. Nxc5
{[%clk 0:01:10.3]} 25... Nxc5 {[%clk 0:02:25.1]} 26. Bxc5 {[%clk 0:01:11.2]}
26... Ne6 {[%clk 0:02:23.1]} 27. Nxf7 {[%clk 0:00:39.9]} 27... Qc7 {[%clk
0:02:21.4]} 28. Nh6+ {[%clk 0:00:36.5]} 28... Kh8 {[%clk 0:02:20.6]} 29. Bxf8
{[%clk 0:00:36.4]} 29... Nxf4 {[%clk 0:02:18]} 30. Qe4 {[%clk 0:00:11.7]} 30...
Rxf8 {[%clk 0:02:15.8]} 31. Rf1 {[%clk 0:00:05.1]} 31... Qc5+ {[%clk 0:02:07.3]}
32. Kh2 {[%clk 0:00:04.7]} 32... Qxg5 {[%clk 0:02:06.6]} 33. Nf7+ {[%clk
0:00:03.3]} 33... Rxf7 {[%clk 0:02:05]} 34. Rd8+ {[%clk 0:00:03.4]} 34... Kg7
{[%clk 0:02:04.7]} 35. Qe8 {[%clk 0:00:03.5]} 35... Qg2# {[%clk 0:02:03.2]} 0-1

[Event "Late-Titled-Tuesday-Blitz-May-07-2024"]
[Site "Chess.com"]
[Date "2024.05.07"]
[Round "6"]
[White "Kostukov_Alex"]
[Black "djano"]
[Result "0-1"]
[WhiteElo "2368"]
[BlackElo "2541"]
[TimeControl "180+1"]
[EndTime "15:04:53 PDT"]
[Termination "djano won on time"]

1. g3 {[%clk 0:03:00.9]} 1... c5 {[%clk 0:02:59.9]} 2. Bg2 {[%clk 0:02:59.2]}
2... Nc6 {[%clk 0:02:59.8]} 3. c4 {[%clk 0:02:58.5]} 3... g6 {[%clk 0:02:56.7]}
4. Nf3 {[%clk 0:02:58.9]} 4... Bg7 {[%clk 0:02:57.3]} 5. O-O {[%clk 0:02:59.4]}
5... Nf6 {[%clk 0:02:57.4]} 6. d4 {[%clk 0:02:59.4]} 6... cxd4 {[%clk
0:02:57.6]} 7. Nxd4 {[%clk 0:03:00.3]} 7... O-O {[%clk 0:02:57.8]} 8. c5 {[%clk
0:03:00.4]} 8... Qa5 {[%clk 0:02:50.9]} 9. Nb3 {[%clk 0:03:00.4]} 9... Qa6
{[%clk 0:02:51.1]} 10. Nc3 {[%clk 0:02:56]} 10... b6 {[%clk 0:02:51.3]} 11. cxb6
{[%clk 0:02:47.3]} 11... axb6 {[%clk 0:02:50.7]} 12. Bg5 {[%clk 0:02:42.7]}
12... e6 {[%clk 0:02:45.8]} 13. Qd2 {[%clk 0:02:32.5]} 13... d5 {[%clk
0:02:43.4]} 14. e4 {[%clk 0:02:17.7]} 14... d4 {[%clk 0:02:24.7]} 15. Nxd4
{[%clk 0:01:51.8]} 15... Rd8 {[%clk 0:02:23.9]} 16. Qf4 {[%clk 0:01:28.2]} 16...
Nh5 {[%clk 0:02:05.6]} 17. Qc7 {[%clk 0:01:26.4]} 17... Rxd4 {[%clk 0:02:00.2]}
18. Qxc6 {[%clk 0:01:18]} 18... Bd7 {[%clk 0:01:58.2]} 19. Qc7 {[%clk
0:00:06.9]} 19... Rc8 {[%clk 0:01:57.8]} 20. Qxc8+ {[%clk 0:00:04.1]} 20... Qxc8
{[%clk 0:01:58.7]} 21. Rad1 {[%clk 0:00:03.1]} 21... Bc6 {[%clk 0:01:50.1]} 22.
Be3 {[%clk 0:00:03]} 22... Rxd1 {[%clk 0:01:47.8]} 23. Rxd1 {[%clk 0:00:03.9]}
23... b5 {[%clk 0:01:44.7]} 24. h3 {[%clk 0:00:02.3]} 24... b4 {[%clk 0:01:44]}
25. Ne2 {[%clk 0:00:02.7]} 25... Qa8 {[%clk 0:01:42.2]} 26. f3 {[%clk
0:00:01.8]} 26... f5 {[%clk 0:01:42]} 27. exf5 {[%clk 0:00:00.2]} 27... gxf5
{[%clk 0:01:42.9]} 28. Kf2 {[%clk 0:00:00.5]} 28... e5 {[%clk 0:01:42.2]} 29.
Nd4 {[%clk 0:00:01.4]} 29... exd4 {[%clk 0:01:42.4]} 30. Bxd4 {[%clk 0:00:01.8]}
30... Bxd4+ {[%clk 0:01:42.2]} 31. Rxd4 {[%clk 0:00:02.7]} 31... Qa7 {[%clk
0:01:42.7]} 32. Ke3 {[%clk 0:00:03.6]} 32... Nxg3 {[%clk 0:01:42.1]} 0-1

[Event "Late-Titled-Tuesday-Blitz-May-07-2024"]
[Site "Chess.com"]
[Date "2024.05.07"]
[Round "6"]
[White "protectiago"]
[Black "Hirna2005"]
[Result "0-1"]
[WhiteElo "2058"]
[BlackElo "2326"]
[TimeControl "180+1"]
[EndTime "15:04:53 PDT"]
[Termination "Hirna2005 won by checkmate"]

1. d4 {[%clk 0:02:59.7]} 1... g6 {[%clk 0:03:00.2]} 2. c4 {[%clk 0:02:59.4]}
2... Bg7 {[%clk 0:03:00.5]} 3. Nc3 {[%clk 0:02:59.3]} 3... d6 {[%clk 0:03:00.8]}
4. e4 {[%clk 0:02:59]} 4... Nc6 {[%clk 0:03:01.1]} 5. Be3 {[%clk 0:02:55.8]}
5... e5 {[%clk 0:03:01.3]} 6. dxe5 {[%clk 0:02:50.8]} 6... Nxe5 {[%clk
0:03:00.1]} 7. Be2 {[%clk 0:02:46.7]} 7... Ne7 {[%clk 0:02:59.5]} 8. Nf3 {[%clk
0:02:46.3]} 8... N7c6 {[%clk 0:02:57]} 9. O-O {[%clk 0:02:45.3]} 9... O-O {[%clk
0:02:56.3]} 10. Rc1 {[%clk 0:02:44.5]} 10... Be6 {[%clk 0:02:53.6]} 11. b3
{[%clk 0:02:44.2]} 11... h6 {[%clk 0:02:49.6]} 12. Nd5 {[%clk 0:02:43.2]} 12...
Kh7 {[%clk 0:02:48.1]} 13. Ne1 {[%clk 0:02:32.8]} 13... f5 {[%clk 0:02:46.8]}
14. exf5 {[%clk 0:02:27.4]} 14... Bxf5 {[%clk 0:02:43.6]} 15. Qd2 {[%clk
0:02:05]} 15... Ng4 {[%clk 0:02:37.8]} 16. h3 {[%clk 0:01:48.2]} 16... Nxe3
{[%clk 0:02:37.4]} 17. Nxe3 {[%clk 0:01:47.7]} 17... Be6 {[%clk 0:02:27.6]} 18.
Nf3 {[%clk 0:01:26.5]} 18... Qe7 {[%clk 0:02:17.8]} 19. Rfe1 {[%clk 0:01:18.7]}
19... Ne5 {[%clk 0:02:14.8]} 20. Nxe5 {[%clk 0:01:11.9]} 20... Bxe5 {[%clk
0:02:14.4]} 21. Rcd1 {[%clk 0:00:59.3]} 21... Qh4 {[%clk 0:02:12.9]} 22. Ng4
{[%clk 0:00:56.1]} 22... Bf4 {[%clk 0:01:51.5]} 23. Qd4 {[%clk 0:00:40.5]} 23...
h5 {[%clk 0:01:02.3]} 24. Bf1 {[%clk 0:00:33.5]} 24... Bxg4 {[%clk 0:00:56.4]}
25. hxg4 {[%clk 0:00:31.5]} 25... Qh2# {[%clk 0:00:55.3]} 0-1

[Event "Late-Titled-Tuesday-Blitz-May-07-2024"]
[Site "Chess.com"]
[Date "2024.05.07"]
[Round "6"]
[White "Arteler"]
[Black "PenguinPacks"]
[Result "0-1"]
[WhiteElo "2279"]
[BlackElo "2488"]
[TimeControl "180+1"]
[EndTime "15:04:56 PDT"]
[Termination "PenguinPacks won by checkmate"]

1. d4 {[%clk 0:03:00.9]} 1... Nf6 {[%clk 0:02:59.9]} 2. Bg5 {[%clk 0:03:01]}
2... g6 {[%clk 0:02:57.4]} 3. c4 {[%clk 0:03:00.8]} 3... Bg7 {[%clk 0:02:52.5]}
4. e3 {[%clk 0:03:00.1]} 4... O-O {[%clk 0:02:52.2]} 5. Nc3 {[%clk 0:02:59.8]}
5... d6 {[%clk 0:02:51.1]} 6. Nf3 {[%clk 0:02:57.9]} 6... c6 {[%clk 0:02:51.4]}
7. Be2 {[%clk 0:02:54.8]} 7... Nbd7 {[%clk 0:02:52.1]} 8. O-O {[%clk 0:02:54.5]}
8... Qe8 {[%clk 0:02:52.7]} 9. h3 {[%clk 0:02:54]} 9... e5 {[%clk 0:02:52.1]}
10. dxe5 {[%clk 0:02:52.7]} 10... dxe5 {[%clk 0:02:51.7]} 11. Nd2 {[%clk
0:02:23.7]} 11... a5 {[%clk 0:02:46]} 12. Nde4 {[%clk 0:02:23.3]} 12... Nxe4
{[%clk 0:02:46.2]} 13. Nxe4 {[%clk 0:02:24.2]} 13... f5 {[%clk 0:02:38.4]} 14.
Nd6 {[%clk 0:02:18.8]} 14... Qe6 {[%clk 0:02:38.9]} 15. b3 {[%clk 0:02:07.4]}
15... h6 {[%clk 0:02:33.6]} 16. c5 {[%clk 0:01:59.4]} 16... b5 {[%clk
0:02:20.9]} 17. Nxc8 {[%clk 0:01:40.4]} 17... Raxc8 {[%clk 0:02:14.7]} 18. Bh4
{[%clk 0:01:15.3]} 18... Nxc5 {[%clk 0:02:10.1]} 19. Rc1 {[%clk 0:01:05.8]}
19... Ne4 {[%clk 0:02:05.9]} 20. a4 {[%clk 0:00:58.6]} 20... Rb8 {[%clk
0:01:53]} 21. axb5 {[%clk 0:00:46.8]} 21... cxb5 {[%clk 0:01:53.9]} 22. Bg3
{[%clk 0:00:38.4]} 22... Rfd8 {[%clk 0:01:50.6]} 23. Qc2 {[%clk 0:00:36.7]}
23... Rbc8 {[%clk 0:01:47.1]} 24. Qa2 {[%clk 0:00:28.1]} 24... Nxg3 {[%clk
0:01:46.4]} 25. fxg3 {[%clk 0:00:27.8]} 25... Qb6 {[%clk 0:01:45.5]} 26. b4+
{[%clk 0:00:22.7]} 26... Kh7 {[%clk 0:01:44.4]} 27. bxa5 {[%clk 0:00:21.5]}
27... Qxe3+ {[%clk 0:01:44.2]} 28. Kh1 {[%clk 0:00:20.4]} 28... Rxc1 {[%clk
0:01:43.9]} 29. Rxc1 {[%clk 0:00:19.9]} 29... Qxc1+ {[%clk 0:01:44.8]} 30. Kh2
{[%clk 0:00:19.5]} 30... Rd2 {[%clk 0:01:43.9]} 31. Qf7 {[%clk 0:00:03.4]} 31...
Rxe2 {[%clk 0:01:42]} 32. g4 {[%clk 0:00:04.3]} 32... Qf4+ {[%clk 0:01:41]} 33.
Kh1 {[%clk 0:00:00.1]} 33... Re1# {[%clk 0:01:41.9]} 0-1

[Event "Late-Titled-Tuesday-Blitz-May-07-2024"]
[Site "Chess.com"]
[Date "2024.05.07"]
[Round "6"]
[White "Yerkinio"]
[Black "Redzishchess"]
[Result "1-0"]
[WhiteElo "2683"]
[BlackElo "2511"]
[TimeControl "180+1"]
[EndTime "15:05:00 PDT"]
[Termination "Yerkinio won by resignation"]

1. e4 {[%clk 0:02:59.5]} 1... c5 {[%clk 0:02:58.3]} 2. Nf3 {[%clk 0:02:58.8]}
2... d6 {[%clk 0:02:57.9]} 3. d4 {[%clk 0:02:57.9]} 3... cxd4 {[%clk 0:02:58.8]}
4. Nxd4 {[%clk 0:02:58.5]} 4... Nf6 {[%clk 0:02:59.6]} 5. Nc3 {[%clk 0:02:59.2]}
5... g6 {[%clk 0:02:59.9]} 6. Be3 {[%clk 0:02:59]} 6... Bg7 {[%clk 0:03:00.2]}
7. f3 {[%clk 0:02:59.6]} 7... O-O {[%clk 0:03:00]} 8. Qd2 {[%clk 0:03:00.2]}
8... Nc6 {[%clk 0:03:00.4]} 9. O-O-O {[%clk 0:03:00.9]} 9... d5 {[%clk 0:03:01]}
10. exd5 {[%clk 0:03:01.7]} 10... Nxd5 {[%clk 0:03:01.9]} 11. Nxc6 {[%clk
0:03:02.3]} 11... bxc6 {[%clk 0:03:02.8]} 12. Bd4 {[%clk 0:03:02.9]} 12... e5
{[%clk 0:03:03.5]} 13. Bc5 {[%clk 0:03:03.1]} 13... Re8 {[%clk 0:03:04.1]} 14.
Ne4 {[%clk 0:03:00.4]} 14... Be6 {[%clk 0:03:03.7]} 15. h4 {[%clk 0:02:53.7]}
15... h6 {[%clk 0:03:03.1]} 16. h5 {[%clk 0:02:31.6]} 16... g5 {[%clk
0:03:02.5]} 17. g4 {[%clk 0:02:28.7]} 17... Qc7 {[%clk 0:03:00.5]} 18. Rh2
{[%clk 0:02:12.5]} 18... Red8 {[%clk 0:02:55.7]} 19. Qe1 {[%clk 0:02:11.8]}
19... Rd7 {[%clk 0:01:55.3]} 20. Bc4 {[%clk 0:01:44.9]} 20... Rad8 {[%clk
0:01:46.8]} 21. Rhd2 {[%clk 0:01:44.4]} 21... Nf4 {[%clk 0:01:09.8]} 22. Bxe6
{[%clk 0:01:40.5]} 22... Nxe6 {[%clk 0:01:08.3]} 23. Rxd7 {[%clk 0:01:37]} 23...
Rxd7 {[%clk 0:01:06.7]} 24. Rxd7 {[%clk 0:01:35.3]} 24... Qxd7 {[%clk
0:01:07.6]} 25. Qd2 {[%clk 0:01:34.8]} 25... Qd5 {[%clk 0:00:55.6]} 26. Qa5
{[%clk 0:01:04]} 26... Bf8 {[%clk 0:00:28.6]} 27. Nf6+ {[%clk 0:00:59.2]} 1-0

[Event "Late-Titled-Tuesday-Blitz-May-07-2024"]
[Site "Chess.com"]
[Date "2024.05.07"]
[Round "6"]
[White "FabianoCaruana"]
[Black "ViIIagra"]
[Result "1-0"]
[WhiteElo "3082"]
[BlackElo "2841"]
[TimeControl "180+1"]
[EndTime "15:05:01 PDT"]
[Termination "FabianoCaruana won by resignation"]

1. d4 {[%clk 0:03:00.9]} 1... Nf6 {[%clk 0:02:59.2]} 2. c4 {[%clk 0:03:01.6]}
2... g6 {[%clk 0:02:59.6]} 3. Nc3 {[%clk 0:03:01.1]} 3... Bg7 {[%clk 0:03:00.1]}
4. e4 {[%clk 0:03:01.3]} 4... d6 {[%clk 0:03:00.7]} 5. Be3 {[%clk 0:03:01.1]}
5... Ng4 {[%clk 0:02:59]} 6. Bg5 {[%clk 0:03:00.4]} 6... h6 {[%clk 0:02:59.3]}
7. Bh4 {[%clk 0:03:00.8]} 7... c5 {[%clk 0:02:44.3]} 8. d5 {[%clk 0:02:57.9]}
8... g5 {[%clk 0:02:03.9]} 9. Bg3 {[%clk 0:02:57.1]} 9... Qa5 {[%clk 0:01:49.6]}
10. Qd2 {[%clk 0:02:54.2]} 10... f5 {[%clk 0:01:42.2]} 11. h3 {[%clk 0:02:35.2]}
11... Ne5 {[%clk 0:01:18.4]} 12. exf5 {[%clk 0:02:17.6]} 12... Bxf5 {[%clk
0:01:19.3]} 13. Bxe5 {[%clk 0:02:11.2]} 13... Bxe5 {[%clk 0:01:20.2]} 14. Bd3
{[%clk 0:02:11.3]} 14... Rf8 {[%clk 0:01:16.8]} 15. Nf3 {[%clk 0:02:08.1]} 15...
Nd7 {[%clk 0:01:14.4]} 16. Bxf5 {[%clk 0:02:02.4]} 16... Rxf5 {[%clk 0:01:15.3]}
17. Qd3 {[%clk 0:02:02.6]} 17... Rf6 {[%clk 0:01:13]} 18. O-O {[%clk 0:02:02.4]}
18... O-O-O {[%clk 0:01:11.6]} 19. Rfe1 {[%clk 0:01:49.9]} 19... Rdf8 {[%clk
0:01:11.6]} 20. Re3 {[%clk 0:01:48.7]} 20... h5 {[%clk 0:00:48]} 21. Ne4 {[%clk
0:01:44]} 21... g4 {[%clk 0:00:38.5]} 22. Nxf6 {[%clk 0:01:40.8]} 22... Bxf6
{[%clk 0:00:38.8]} 23. hxg4 {[%clk 0:01:37.9]} 23... hxg4 {[%clk 0:00:39.7]} 24.
Nh2 {[%clk 0:01:37.3]} 24... Bxb2 {[%clk 0:00:39.4]} 25. Rb1 {[%clk 0:01:32.9]}
25... Ne5 {[%clk 0:00:37.3]} 26. Qb3 {[%clk 0:01:20.6]} 26... g3 {[%clk
0:00:09.8]} 27. Rxg3 {[%clk 0:01:15.4]} 1-0

[Event "Late-Titled-Tuesday-Blitz-May-07-2024"]
[Site "Chess.com"]
[Date "2024.05.07"]
[Round "6"]
[White "ToddBryant"]
[Black "DucksParadise"]
[Result "1-0"]
[WhiteElo "2412"]
[BlackElo "2552"]
[TimeControl "180+1"]
[EndTime "15:05:14 PDT"]
[Termination "ToddBryant won on time"]

1. e4 {[%clk 0:03:00.9]} 1... c6 {[%clk 0:02:53.7]} 2. d4 {[%clk 0:02:58]} 2...
d5 {[%clk 0:02:54.6]} 3. f3 {[%clk 0:02:57.9]} 3... dxe4 {[%clk 0:02:39.4]} 4.
fxe4 {[%clk 0:02:58.8]} 4... e5 {[%clk 0:02:40]} 5. Nf3 {[%clk 0:02:58]} 5...
Bg4 {[%clk 0:02:38.1]} 6. c3 {[%clk 0:02:55.7]} 6... Nd7 {[%clk 0:02:38.1]} 7.
Bd3 {[%clk 0:02:54.2]} 7... Ngf6 {[%clk 0:02:36.1]} 8. O-O {[%clk 0:02:54.8]}
8... Bd6 {[%clk 0:02:33.9]} 9. Na3 {[%clk 0:02:54.7]} 9... Bxa3 {[%clk
0:02:33.5]} 10. bxa3 {[%clk 0:02:55.6]} 10... O-O {[%clk 0:02:32.1]} 11. Be3
{[%clk 0:02:55.7]} 11... b5 {[%clk 0:02:30.7]} 12. Qe1 {[%clk 0:02:54.3]} 12...
Re8 {[%clk 0:02:22.5]} 13. Bg5 {[%clk 0:02:07.1]} 13... exd4 {[%clk 0:02:00.6]}
14. cxd4 {[%clk 0:02:05.4]} 14... h6 {[%clk 0:01:54.2]} 15. Bh4 {[%clk
0:02:01.2]} 15... g5 {[%clk 0:00:44.3]} 16. Nxg5 {[%clk 0:01:54]} 16... hxg5
{[%clk 0:00:45.2]} 17. Bxg5 {[%clk 0:01:54.8]} 17... Qb6 {[%clk 0:00:38.5]} 18.
Qf2 {[%clk 0:01:32.4]} 18... Re6 {[%clk 0:00:21.3]} 19. e5 {[%clk 0:01:28]}
19... Nxe5 {[%clk 0:00:18.6]} 20. Bxf6 {[%clk 0:01:26.2]} 20... Nxd3 {[%clk
0:00:16.7]} 21. Qh4 {[%clk 0:01:26.9]} 21... Rxf6 {[%clk 0:00:13.9]} 22. Qxf6
{[%clk 0:01:27.8]} 22... Be6 {[%clk 0:00:12.3]} 23. Rf3 {[%clk 0:01:24.2]} 23...
Rd8 {[%clk 0:00:09.4]} 24. Rxd3 {[%clk 0:01:17.7]} 24... Kf8 {[%clk 0:00:08.2]}
25. Re1 {[%clk 0:01:13.8]} 25... Ke8 {[%clk 0:00:06.7]} 26. Rxe6+ {[%clk
0:01:13.7]} 26... fxe6 {[%clk 0:00:07.6]} 27. Qxe6+ {[%clk 0:01:14.4]} 27... Kf8
{[%clk 0:00:08.1]} 28. Rf3+ {[%clk 0:01:14.4]} 28... Kg7 {[%clk 0:00:08.4]} 29.
Rf7+ {[%clk 0:01:13.2]} 1-0

[Event "Late-Titled-Tuesday-Blitz-May-07-2024"]
[Site "Chess.com"]
[Date "2024.05.07"]
[Round "6"]
[White "SHIVACalypso"]
[Black "IlanSchnaider"]
[Result "0-1"]
[WhiteElo "2538"]
[BlackElo "2716"]
[TimeControl "180+1"]
[EndTime "15:05:23 PDT"]
[Termination "IlanSchnaider won by checkmate"]

1. Nf3 {[%clk 0:02:54.4]} 1... Nf6 {[%clk 0:02:59.4]} 2. d4 {[%clk 0:02:54.3]}
2... g6 {[%clk 0:02:59.8]} 3. g3 {[%clk 0:02:52.7]} 3... Bg7 {[%clk 0:03:00.3]}
4. Bg2 {[%clk 0:02:53.4]} 4... O-O {[%clk 0:03:01.2]} 5. O-O {[%clk 0:02:54.1]}
5... d5 {[%clk 0:03:02.1]} 6. c4 {[%clk 0:02:51.7]} 6... Nc6 {[%clk 0:03:02.7]}
7. cxd5 {[%clk 0:02:50.9]} 7... Nxd5 {[%clk 0:03:03.6]} 8. Nc3 {[%clk
0:02:50.7]} 8... e5 {[%clk 0:03:04]} 9. Nxd5 {[%clk 0:02:45.7]} 9... e4 {[%clk
0:03:03.3]} 10. Ne5 {[%clk 0:02:41.3]} 10... Qxd5 {[%clk 0:02:59.7]} 11. Nxc6
{[%clk 0:02:38.3]} 11... Qxc6 {[%clk 0:03:00.6]} 12. Bf4 {[%clk 0:02:33.2]}
12... Qb6 {[%clk 0:02:55.3]} 13. Rc1 {[%clk 0:02:28.5]} 13... c6 {[%clk
0:02:54.4]} 14. Bxe4 {[%clk 0:02:17.6]} 14... Bh3 {[%clk 0:02:53.8]} 15. Bg2
{[%clk 0:02:15.7]} 15... Bxg2 {[%clk 0:02:52.9]} 16. Kxg2 {[%clk 0:02:16.6]}
16... Qxb2 {[%clk 0:02:53.1]} 17. Rb1 {[%clk 0:02:15.4]} 17... Qxa2 {[%clk
0:02:53.3]} 18. Rxb7 {[%clk 0:02:14.7]} 18... Qd5+ {[%clk 0:02:51]} 19. f3
{[%clk 0:02:13.3]} 19... c5 {[%clk 0:02:51.9]} 20. Rb5 {[%clk 0:02:03.9]} 20...
Bxd4 {[%clk 0:02:31.7]} 21. Qd3 {[%clk 0:02:01.3]} 21... Qc6 {[%clk 0:02:24.2]}
22. Rc1 {[%clk 0:01:56.8]} 22... Rad8 {[%clk 0:02:08]} 23. Qc4 {[%clk
0:01:53.3]} 23... Rfe8 {[%clk 0:02:05.9]} 24. e4 {[%clk 0:01:46.4]} 24... Rxe4
{[%clk 0:01:32.1]} 25. fxe4 {[%clk 0:01:45.1]} 25... Qxe4+ {[%clk 0:01:32.1]}
26. Kh3 {[%clk 0:01:43]} 26... Rd5 {[%clk 0:01:31.6]} 27. g4 {[%clk 0:00:55.7]}
27... h5 {[%clk 0:00:48.2]} 28. g5 {[%clk 0:00:28.8]} 28... Qxf4 {[%clk
0:00:42.8]} 29. Qxc5 {[%clk 0:00:28.6]} 29... Qg4# {[%clk 0:00:42.5]} 0-1

[Event "Late-Titled-Tuesday-Blitz-May-07-2024"]
[Site "Chess.com"]
[Date "2024.05.07"]
[Round "6"]
[White "LikeWater"]
[Black "Yaacovn"]
[Result "1-0"]
[WhiteElo "2697"]
[BlackElo "2838"]
[TimeControl "180+1"]
[EndTime "15:05:31 PDT"]
[Termination "LikeWater won by resignation"]

1. e4 {[%clk 0:03:00.9]} 1... c6 {[%clk 0:02:44.3]} 2. d4 {[%clk 0:03:00.8]}
2... d5 {[%clk 0:02:45.2]} 3. f3 {[%clk 0:03:01.4]} 3... dxe4 {[%clk 0:02:45.4]}
4. fxe4 {[%clk 0:03:01.3]} 4... e5 {[%clk 0:02:46.3]} 5. Nf3 {[%clk 0:03:01.1]}
5... Be6 {[%clk 0:02:46.6]} 6. c3 {[%clk 0:02:59.5]} 6... Nd7 {[%clk 0:02:46.9]}
7. Nbd2 {[%clk 0:02:57]} 7... Qc7 {[%clk 0:02:47]} 8. Bc4 {[%clk 0:02:53.5]}
8... Ngf6 {[%clk 0:02:46.4]} 9. Bxe6 {[%clk 0:02:53]} 9... fxe6 {[%clk
0:02:46.9]} 10. Qb3 {[%clk 0:02:52.2]} 10... O-O-O {[%clk 0:02:43.6]} 11. O-O
{[%clk 0:02:47.6]} 11... exd4 {[%clk 0:02:43.5]} 12. cxd4 {[%clk 0:02:47.2]}
12... e5 {[%clk 0:02:44]} 13. Nc4 {[%clk 0:02:37.4]} 13... exd4 {[%clk
0:02:39.1]} 14. e5 {[%clk 0:02:37.1]} 14... Nd5 {[%clk 0:02:33.7]} 15. Ng5
{[%clk 0:02:19.5]} 15... Bc5 {[%clk 0:02:01.1]} 16. Ne6 {[%clk 0:02:01.9]} 16...
Qb8 {[%clk 0:01:49.4]} 17. Qh3 {[%clk 0:02:02]} 17... b5 {[%clk 0:01:18.5]} 18.
Nxc5 {[%clk 0:01:49.8]} 18... bxc4 {[%clk 0:01:17]} 19. Rf7 {[%clk 0:01:42.5]}
19... Nb6 {[%clk 0:00:36.2]} 20. Bf4 {[%clk 0:01:27.9]} 20... Rhf8 {[%clk
0:00:11.2]} 21. e6 {[%clk 0:01:22.1]} 21... Rxf7 {[%clk 0:00:06.9]} 22. Bxb8
{[%clk 0:01:22.4]} 22... Kxb8 {[%clk 0:00:05.9]} 23. Nxd7+ {[%clk 0:01:19.9]}
23... Rfxd7 {[%clk 0:00:05]} 24. exd7 {[%clk 0:01:20.1]} 24... Rxd7 {[%clk
0:00:05.8]} 25. a4 {[%clk 0:01:14.8]} 25... a5 {[%clk 0:00:05.5]} 26. Qf5 {[%clk
0:01:11.6]} 26... Rd5 {[%clk 0:00:04]} 27. Qf8+ {[%clk 0:01:11.6]} 27... Kb7
{[%clk 0:00:04.4]} 28. Qxg7+ {[%clk 0:01:12]} 28... Ka6 {[%clk 0:00:04.9]} 29.
Qc7 {[%clk 0:01:04]} 29... d3 {[%clk 0:00:03.1]} 30. Qxc6 {[%clk 0:01:03.7]}
30... d2 {[%clk 0:00:03.5]} 31. Rd1 {[%clk 0:01:03.4]} 31... Rd3 {[%clk
0:00:01.7]} 32. g4 {[%clk 0:00:59.4]} 32... c3 {[%clk 0:00:01.3]} 1-0

[Event "Late-Titled-Tuesday-Blitz-May-07-2024"]
[Site "Chess.com"]
[Date "2024.05.07"]
[Round "6"]
[White "Sandstad"]
[Black "Pig-filth"]
[Result "1/2-1/2"]
[WhiteElo "2429"]
[BlackElo "2315"]
[TimeControl "180+1"]
[EndTime "15:05:34 PDT"]
[Termination "Game drawn by agreement"]

1. d4 {[%clk 0:02:57.5]} 1... Nc6 {[%clk 0:02:59.3]} 2. Nf3 {[%clk 0:02:56]}
2... d6 {[%clk 0:02:57.7]} 3. d5 {[%clk 0:02:54.2]} 3... Ne5 {[%clk 0:02:56.8]}
4. Nxe5 {[%clk 0:02:52.9]} 4... dxe5 {[%clk 0:02:57.7]} 5. c4 {[%clk 0:02:53.1]}
5... e6 {[%clk 0:02:57.2]} 6. Nc3 {[%clk 0:02:52]} 6... Nf6 {[%clk 0:02:55]} 7.
e4 {[%clk 0:02:51.5]} 7... a6 {[%clk 0:02:54.4]} 8. Be2 {[%clk 0:02:49.6]} 8...
Be7 {[%clk 0:02:49.9]} 9. Be3 {[%clk 0:02:48.1]} 9... O-O {[%clk 0:02:49.9]} 10.
O-O {[%clk 0:02:47.4]} 10... b6 {[%clk 0:02:41.3]} 11. h3 {[%clk 0:02:47]} 11...
Bb7 {[%clk 0:02:41.6]} 12. Rc1 {[%clk 0:02:40.2]} 12... exd5 {[%clk 0:02:41.7]}
13. cxd5 {[%clk 0:02:38]} 13... b5 {[%clk 0:02:35]} 14. a3 {[%clk 0:02:37.3]}
14... c6 {[%clk 0:02:31.5]} 15. dxc6 {[%clk 0:02:28.4]} 15... Bxc6 {[%clk
0:02:32.4]} 16. Bf3 {[%clk 0:02:26]} 16... Qxd1 {[%clk 0:02:10]} 17. Rfxd1
{[%clk 0:02:26.9]} 17... Rfd8 {[%clk 0:02:10]} 18. Bg5 {[%clk 0:02:17.7]} 18...
Rxd1+ {[%clk 0:02:06.6]} 19. Rxd1 {[%clk 0:02:18.6]} 19... Rd8 {[%clk
0:02:07.1]} 20. Rxd8+ {[%clk 0:02:06.6]} 20... Bxd8 {[%clk 0:02:08]} 21. Nd5
{[%clk 0:01:45.3]} 21... Nxd5 {[%clk 0:01:23.4]} 22. exd5 {[%clk 0:01:44.1]}
22... Bxg5 {[%clk 0:01:22.4]} 23. dxc6 {[%clk 0:01:44.1]} 23... Bd8 {[%clk
0:01:23.2]} 24. g4 {[%clk 0:01:35.5]} 24... Kf8 {[%clk 0:01:23.4]} 25. Kf1
{[%clk 0:01:25.2]} 25... Ke7 {[%clk 0:01:23.2]} 26. Ke2 {[%clk 0:01:25.4]} 26...
g6 {[%clk 0:01:23.4]} 27. Bd5 {[%clk 0:01:06.2]} 27... f5 {[%clk 0:01:20.8]} 28.
gxf5 {[%clk 0:00:59.8]} 28... gxf5 {[%clk 0:01:20.5]} 29. Bg8 {[%clk 0:00:44.9]}
29... h6 {[%clk 0:01:15.9]} 30. Bh7 {[%clk 0:00:41.3]} 30... Kf6 {[%clk
0:01:00.4]} 31. b3 {[%clk 0:00:40.2]} 31... Bc7 {[%clk 0:00:52.8]} 32. a4 {[%clk
0:00:38.3]} 32... bxa4 {[%clk 0:00:46.2]} 33. bxa4 {[%clk 0:00:39.2]} 33... Ke6
{[%clk 0:00:46.1]} 34. f3 {[%clk 0:00:38.2]} 34... Kd6 {[%clk 0:00:43.1]} 35.
Bxf5 {[%clk 0:00:37.2]} 35... Kxc6 {[%clk 0:00:42.8]} 1/2-1/2